fUST/lending_fUST_20240830
["ID","MTS","AMOUNT","RATE_DAILY","PERIOD"]
[336659548,1724999984567,-500.0,0.00038356,120]
[336659550,1724999984592,-500.0,0.00038356,60]
[336659552,1724999984617,-552.29,0.00038356,120]
[336659554,1724999984641,-500.0,0.00038356,120]
[336659556,1724999984675,-543.2,0.00038356,120]
[336659558,1724999984701,-500.0,0.00038356,120]
[336659559,1724999984725,-422.1521709,0.00038356,120]
[336659561,1724999984749,-500.0,0.00038356,120]
[336659563,1724999984774,-299.73466475,0.00038356,120]
[336659565,1724999984800,-151.0,0.00038356,120]
[336659567,1724999984827,-500.0,0.0003863,120]
[336659569,1724999984851,-500.0,0.0003863,120]
[336659575,1724999984999,-500.0,0.0003863,120]
[336659577,1724999985026,-310.61393938,0.0003863,120]
[336659579,1724999985052,-500.0,0.0003863,120]
[336659581,1724999985081,-500.0,0.0003863,60]
[336659583,1724999985106,-500.0,0.0003863,120]
[336659585,1724999985131,-500.0,0.0003863,120]
[336659587,1724999985159,-365.44400759,0.0003863,120]
[336659589,1724999985187,-543.2,0.0003863,120]
[336659591,1724999985211,-500.0,0.00038904,120]
[336659593,1724999985238,-568.84,0.00038904,120]
[336659594,1724999985262,-500.0,0.00038904,60]
[336659596,1724999985286,-500.0,0.00038904,120]
[336659598,1724999985312,-543.2,0.00038904,120]
[336659600,1724999985336,-150.0,0.00039,30]
[336659602,1724999985360,-1000.0,0.00039,30]
[336659603,1724999985384,-500.0,0.00039178,120]
[336659604,1724999985408,-501.74726354,0.00039178,60]
[336659605,1724999985434,-543.2,0.00039178,120]
[336659606,1724999985459,-151.0,0.0003937,120]
[336659607,1724999985484,-500.0,0.00039452,120]
[336659608,1724999985509,-543.2,0.00039452,120]
[336659609,1724999985534,-141252.1182445,0.000397,60]
[336659610,1724999985560,-177.05622534,0.00039726,120]
[336659611,1724999985586,-543.2,0.00039726,120]
[336659612,1724999985611,-306379.52835748,0.000398,60]
[336659613,1724999985637,-6373.04330685,0.00039999,120]
[336659614,1724999985661,-150.0,0.0004,30]
[336659615,1724999985685,-414.1180016,0.0004,120]
[336659616,1724999985709,-370.07291731,0.0004,40]
[336659617,1724999985733,-151.93322691,0.0004,30]
[336659618,1724999985757,-742.2698728,0.0004,120]
[336659619,1724999985791,-1000.0,0.0004,120]
[336659620,1724999985826,-1000.0,0.0004,30]
[336659621,1724999985852,-2501.79707818,0.0004,120]
[336659622,1724999985878,-427.7,0.0004,120]
[336659623,1724999985905,-249.42746535,0.0004,30]
[336659624,1724999985933,-465.43333333,0.0004,120]
[336659625,1724999985959,-1024.22085541,0.0004,120]
[336659626,1724999985987,-295.844192,0.0004,30]
[336659627,1724999986012,-502.99581,0.0004,120]
[336659628,1724999986042,-543.2,0.0004,120]
[336659629,1724999986068,-151.0,0.00040027,120]
[336659630,1724999986095,-543.2,0.00040273,120]
[336659631,1724999986121,-446.5,0.000403,30]
[336659632,1724999986149,-151.0,0.00040411,120]
[336659633,1724999986178,-543.2,0.00040547,120]
[336659634,1724999986205,-446.51,0.000406,30]
[336659635,1724999986231,-446.51,0.000406,30]
[336659636,1724999986259,-200.0,0.00040696,120]
[336659637,1724999986288,-543.2,0.00040821,120]
[336659638,1724999986313,-200.0,0.00041,30]
[336659639,1724999986339,-1000.0,0.00041,30]
[336659640,1724999986364,-500.0,0.00041095,30]
[336659641,1724999986389,-500.0,0.00041095,30]
[336659643,1724999986413,-500.0,0.00041095,30]
[336659644,1724999986438,-500.0,0.00041095,30]
[336659646,1724999986464,-500.0,0.00041095,30]
[336659648,1724999986493,-500.0,0.00041095,30]
[336659650,1724999986519,-500.0,0.00041095,30]
[336659653,1724999986545,-500.0,0.00041095,30]
[336659655,1724999986570,-500.0,0.00041095,30]
[336659657,1724999986595,-500.0,0.00041095,30]
[336659659,1724999986620,-555.46471598,0.00041095,30]
[336659661,1724999986644,-1000.0,0.00041095,120]
[336659663,1724999986669,-1000.0,0.00041095,120]
[336659665,1724999986695,-1000.0,0.00041095,120]
[336659667,1724999986719,-705.41516947,0.00041095,120]
[336659669,1724999986746,-543.2,0.00041095,120]
[336659671,1724999986770,-500.0,0.00041256,60]
[336659673,1724999986797,-543.2,0.00041369,120]
[336659675,1724999986822,-151.0,0.00041452,120]
[336659677,1724999986846,-152.0,0.00041515,31]
[336659680,1724999986872,-487.69909,0.00041553,120]
[336659682,1724999986899,-543.2,0.00041643,120]
[336659684,1724999986923,-151.0,0.00041699,120]
[336659686,1724999986953,-153.82,0.000418,31]
[336659688,1724999986980,-153.82,0.000418,31]
[336659690,1724999987011,-153.82,0.000418,31]
[336659692,1724999987038,-153.82,0.000418,31]
[336659695,1724999987065,-543.2,0.00041917,120]
[336659697,1724999987089,-1000.0,0.00042,120]
[336659698,1724999987113,-1000.0,0.00042,30]
[336659700,1724999987137,-164.682565,0.00042,120]
[336659703,1724999987167,-164.682557,0.00042,120]
[336659705,1724999987193,-151.0,0.00042,120]
[336659706,1724999987217,-212.579726,0.00042,120]
[336659709,1724999987246,-212.579717,0.00042,120]
[336659710,1724999987270,-270.553728,0.00042,120]
[336659712,1724999987294,-250.0,0.00042,30]
[336659714,1724999987320,-151.300195,0.00042,120]
[336659717,1724999987346,-990.149299,0.00042,120]
[336659719,1724999987372,-990.149292,0.00042,120]
[336659721,1724999987397,-204.608205,0.00042,120]
[336659722,1724999987422,-204.608206,0.00042,120]
[336659724,1724999987454,-196.232414,0.00042,120]
[336659727,1724999987478,-196.232412,0.00042,120]
[336659729,1724999987502,-168.678146,0.00042,120]
[336659731,1724999987527,-168.678156,0.00042,120]
[336659733,1724999987551,-151.0,0.00042,120]
[336659735,1724999987575,-152.0,0.0004205,31]
[336659737,1724999987601,-543.2,0.00042191,120]
[336659739,1724999987627,-543.2,0.00042465,120]
[336659741,1724999987651,-151.0,0.00042493,120]
[336659749,1724999987810,-152.0,0.00042584,31]
[336659751,1724999987834,-500.0,0.00042614,60]
[336659753,1724999987860,-543.2,0.00042739,120]
[336659755,1724999987884,-150.0,0.00043,60]
[336659757,1724999987908,-1000.0,0.00043,30]
[336659759,1724999987931,-12275.0,0.00043,50]
[336659761,1724999987956,-151.0,0.00043,120]
[336659763,1724999987990,-151.0,0.00043,120]
[336659765,1724999988021,-160.259066,0.00043,120]
[336659767,1724999988048,-160.259066,0.00043,120]
[336659769,1724999988076,-543.2,0.00043013,120]
[336659771,1724999988102,-152.0,0.00043119,31]
[336659772,1724999988130,-543.2,0.00043287,120]
[336659774,1724999988161,-151.0,0.0004337,120]
[336659776,1724999988190,-151.0,0.00043534,120]
[336659778,1724999988216,-165.077225,0.00043547,120]
[336659780,1724999988247,-3000.0,0.00043835,120]
[336659782,1724999988274,-1000.0,0.00044,30]
[336659785,1724999988299,-150.0,0.00044,60]
[336659787,1724999988323,-214.25126243,0.00044,120]
[336659789,1724999988351,-1000.0,0.00044,120]
[336659791,1724999988376,-250.0,0.00044,30]
[336659793,1724999988402,-500.0,0.00044152,60]
[336659795,1724999988428,-151.0,0.00044575,120]
[336659797,1724999988452,-500.0,0.00044615,60]
[336659799,1724999988477,-500.0,0.00044621,60]
[336659801,1724999988502,-500.0,0.00044622,60]
[336659803,1724999988527,-500.0,0.00044651,60]
[336659805,1724999988551,-500.0,0.00044657,60]
[336659808,1724999988576,-500.0,0.00044675,60]
[336659810,1724999988602,-10020.0,0.00044688,120]
[336659812,1724999988628,-500.0,0.00044694,60]
[336659814,1724999988653,-500.0,0.00044695,60]
[336659815,1724999988679,-500.0,0.00044696,60]
[336659817,1724999988704,-500.0,0.00044719,60]
[336659819,1724999988730,-500.0,0.0004472,60]
[336659821,1724999988757,-500.0,0.00044723,60]
[336659823,1724999988782,-500.0,0.00044734,60]
[336659825,1724999988806,-500.0,0.00044749,60]
[336659827,1724999988832,-500.0,0.00044756,60]
[336659829,1724999988858,-500.0,0.00044766,60]
[336659831,1724999988883,-500.0,0.00044781,60]
[336659833,1724999988910,-500.0,0.00044787,60]
[336659835,1724999988936,-1051.8818536,0.000448,120]
[336659837,1724999988963,-1612.51796868,0.000448,120]
[336659839,1724999988991,-500.0,0.00044804,60]
[336659841,1724999989017,-500.0,0.00044822,60]
[336659843,1724999989042,-807.2667081,0.00044864,60]
[336659845,1724999989067,-500.0,0.00044866,60]
[336659847,1724999989091,-500.0,0.0004488,60]
[336659849,1724999989117,-500.0,0.00044886,60]
[336659851,1724999989145,-500.0,0.00044934,60]
[336659853,1724999989170,-500.0,0.00044935,60]
[336659855,1724999989197,-500.0,0.0004495,60]
[336659856,1724999989222,-500.0,0.00044971,60]
[336659858,1724999989246,-500.0,0.00044986,60]
[336659861,1724999989279,-200.0,0.00045,60]
[336659863,1724999989314,-200.0,0.00045,120]
[336659866,1724999989347,-500.314,0.00045,60]
[336659868,1724999989377,-692.0,0.00045,64]
[336659870,1724999989407,-2000.0,0.00045,120]
[336659872,1724999989437,-1000.0,0.00045,30]
[336659875,1724999989467,-155.0,0.00045,120]
[336659877,1724999989498,-35066.97088836,0.00045,120]
[336659879,1724999989528,-153.881707,0.00045,120]
[336659881,1724999989559,-210.063933,0.00045,120]
[336659884,1724999989595,-160.259066,0.00045,120]
[336659886,1724999989625,-160.259066,0.00045,120]
[336659888,1724999989653,-151.0,0.00045041,120]
[336659891,1724999989683,-500.0,0.00045205,120]
[336659893,1724999989714,-500.0,0.00045205,120]
[336659895,1724999989743,-3000.0,0.00045205,120]
[336659897,1724999989772,-646.0,0.000455,120]
[336659899,1724999989799,-151.0,0.00045616,120]
[336659902,1724999989825,-10000.0,0.00045688,120]
[336659904,1724999989854,-200.0,0.00045854,120]
[336659906,1724999989882,-160.259066,0.000459,120]
[336659908,1724999989912,-160.259057,0.000459,120]
[336659911,1724999989942,-60868.0,0.000459,120]
[336659913,1724999989969,-170.4974709,0.00045941,59]
[336659915,1724999990004,-163.1734528,0.00046,120]
[336659917,1724999990034,-1000.0,0.00046,120]
[336659920,1724999990064,-250.0,0.00046,30]
[336659922,1724999990091,-699.99999909,0.000465,120]
[336659924,1724999990116,-203.97891623,0.000465,120]
[336659926,1724999990149,-500.0,0.00046557,30]
[336659928,1724999990178,-3000.0,0.00046575,120]
[336659930,1724999990212,-12614.83413743,0.000466,120]
[336659933,1724999990242,-151.0,0.00046658,120]
[336659935,1724999990269,-10000.0,0.00046688,120]
[336659937,1724999990304,-151.0,0.00046712,120]
[336659939,1724999990335,-894.73746589,0.000468,60]
[336659941,1724999990366,-1368.90275624,0.00047,120]
[336659943,1724999990392,-5000.0,0.00047,120]
[336659945,1724999990419,-487.69909,0.00047489,120]
[336659948,1724999990456,-195.09564896,0.0004759,120]
[336659950,1724999990485,-10000.0,0.00047688,120]
[336659952,1724999990513,-151.0,0.00047699,120]
[336659954,1724999990541,-50000.0,0.00047878,35]
[336659956,1724999990571,-50000.0,0.00047878,35]
[336659958,1724999990600,-2578.986,0.0004788,90]
[336659960,1724999990627,-1629.46398019,0.00047945,120]
[336659962,1724999990654,-1000.0,0.00047999,120]
[336659965,1724999990682,-1000.0,0.00048,120]
[336659967,1724999990713,-272.66563182,0.00048,120]
[336659969,1724999990740,-250.0,0.00048,30]
[336659970,1724999990768,-40000.0,0.000482,120]
[336659971,1724999990795,-151.0,0.00048384,120]
[336659972,1724999990823,-200.0,0.00048411,120]
[336659973,1724999990854,-92478.58962629,0.0004844,120]
[336660180,1725000277311,158.506341,0.00014247,2]
[336660188,1725000315632,165.077228,0.0001863,2]
[336660192,1725000465053,315.35351157,0.00019,2]
[336660228,1725000638362,-286.720189,0.00020027,2]
[336660229,1725000638372,-3000.0,0.00021,2]
[336660230,1725000638382,-300.0,0.00021009,2]
[336660231,1725000638392,-300.0,0.00021009,2]
[336660232,1725000638407,-3000.0,0.0002101,2]
[336660233,1725000638417,-3000.0,0.0002102,2]
[336660234,1725000638427,-5011.184481,0.0002103,2]
[336660235,1725000638437,-910.76,0.00021114,2]
[336660236,1725000638449,-210.17,0.00021114,2]
[336660237,1725000638459,-295.38502953,0.00021114,2]
[336660238,1725000638471,-204.61497047,0.00021114,2]
[336660239,1725000638483,-237.13456395,0.00021114,2]
[336660240,1725000638493,-230.45,0.00021114,2]
[336660241,1725000638503,-500.0,0.00021115,2]
[336660242,1725000638512,-500.0,0.00021115,2]
[336660243,1725000638522,-500.0,0.00021115,2]
[336660244,1725000638531,-500.0,0.00021115,2]
[336660245,1725000638541,-118.96339093,0.00021388,2]
[336660246,1725000638557,-791.79660907,0.00021388,2]
[336660247,1725000638569,-500.0,0.00021389,2]
[336660250,1725000638579,-497.34361056,0.00021389,2]
[336660252,1725000638589,-910.76,0.00021662,2]
[336660253,1725000638599,-500.0,0.00021663,2]
[336660254,1725000638609,-158.82,0.00021759,3]
[336660255,1725000638618,-476.48,0.00021759,3]
[336660256,1725000638628,-226.95,0.00021759,3]
[336660257,1725000638640,-680.85,0.00021759,3]
[336660258,1725000638650,-70926.04050654,0.00021769,2]
[336660259,1725000638662,-500.0,0.00021773,2]
[336660260,1725000638671,-952.06849367,0.00021836,2]
[336660261,1725000638682,-910.76,0.00021936,5]
[336660262,1725000638692,-245.80246163,0.00022178,5]
[336660263,1725000638701,-910.76,0.0002221,5]
[336660264,1725000638712,-250.0,0.00022477,3]
[336660265,1725000638724,-910.76,0.00022484,5]
[336660266,1725000638735,-910.76,0.00022758,5]
[336660267,1725000638746,-2335.7111611,0.00022831,2]
[336660268,1725000638758,-36100.00427302,0.00022932,2]
[336660269,1725000638769,-500.0,0.00022973,2]
[336660270,1725000638778,-194.28657341,0.00022999,2]
[336660271,1725000638788,-500.0,0.00022999,2]
[336660272,1725000638798,-500.0,0.00022999,2]
[336660273,1725000638807,-258.20732334,0.00022999,2]
[336660274,1725000638816,-486.50999172,0.00022999,2]
[336660275,1725000638826,-500.0,0.00022999,2]
[336660276,1725000638837,-500.0,0.00022999,2]
[336660277,1725000638852,-581.85937587,0.00022999,2]
[336660278,1725000638863,-3192.67177974,0.00023,3]
[336660279,1725000638873,-44358.974999,0.00023,5]
[336660280,1725000638883,-910.76,0.00023032,5]
[336660281,1725000638894,-420.0,0.0002311,2]
[336660282,1725000638905,-317.64,0.00023129,3]
[336660283,1725000638916,-453.9,0.00023129,3]
[336660284,1725000638926,-500.0,0.00023272,2]
[336660285,1725000638938,-271.80165431,0.00023273,2]
[336660286,1725000638949,-500.0,0.00023273,2]
[336660287,1725000638959,-500.0,0.00023273,2]
[336660288,1725000638969,-500.0,0.00023273,2]
[336660289,1725000638981,-52216.5094051,0.00023305,2]
[336660290,1725000638991,-910.76,0.00023306,5]
[336660291,1725000639000,-1000.0,0.00023521,2]
[336660292,1725000639011,-910.76,0.0002358,5]
[336660293,1725000639020,-910.76,0.00023854,5]
[336660294,1725000639030,-910.76,0.00024128,5]
[336660295,1725000639041,-910.76,0.00024402,5]
[336660296,1725000639051,-1500.0,0.00024419,2]
[336660297,1725000639061,-200.0,0.00024658,15]
[336660298,1725000639074,-910.76,0.00024676,5]
[336660299,1725000639085,-2335.71116107,0.00024943,2]
[336660300,1725000639096,-910.76,0.0002495,5]
[336660301,1725000639106,-1000.0,0.00024968,2]
[336660302,1725000639117,-21307.4158842,0.00025,4]
[336660303,1725000639128,-504.88255451,0.00025,7]
[336660304,1725000639139,-42449.47322548,0.00025,2]
[336660305,1725000639150,-43681.83860816,0.0002509,2]
[336660306,1725000639161,-151.0,0.0002509,7]
[336660307,1725000639171,-151.0,0.0002509,7]
[336660308,1725000639181,-160.259066,0.0002509,7]
[336660309,1725000639190,-160.259066,0.0002509,7]
[336660310,1725000639201,-151.0,0.00025125,7]
[336660311,1725000639213,-151.0,0.00025125,7]
[336660312,1725000639222,-151.0,0.00025125,7]
[336660313,1725000639242,-165.077228,0.00025205,2]
[336660314,1725000639251,-910.76,0.00025224,5]
[336660315,1725000639261,-587.0,0.00025421,2]
[336660316,1725000639272,-910.76,0.00025498,5]
[336660317,1725000639282,-151.0,0.00025498,7]
[336660318,1725000639292,-151.0,0.00025498,7]
[336660319,1725000639302,-910.76,0.00025772,5]
[336660320,1725000639313,-910.76,0.00026046,5]
[336660321,1725000639324,-910.76,0.0002632,5]
[336660322,1725000639334,-150.112233,0.000265,8]
[336660323,1725000639343,-910.76,0.00026594,5]
[336660324,1725000639354,-153.82,0.000266,31]
[336660325,1725000639364,-153.82,0.000266,31]
[336660326,1725000639374,-500.0,0.00026821,2]
[336660327,1725000639385,-910.76,0.00026868,5]
[336660328,1725000639394,-2335.71116107,0.00027055,2]
[336660329,1725000639406,-539.08513112,0.00027116,2]
[336660330,1725000639416,-1200.0,0.0002713,2]
[336660331,1725000639426,-500.0,0.00027135,2]
[336660332,1725000639436,-910.76,0.00027142,5]
[336660333,1725000639446,-276.16669124,0.00027397,2]
[336660334,1725000639457,-910.95868992,0.00027416,5]
[336660335,1725000639466,-150.112233,0.000276,7]
[336660336,1725000639478,-600.0,0.00027637,2]
[336660337,1725000639490,-500.0,0.00027657,2]
[336660338,1725000639501,-1200.0,0.00027727,2]
[336660339,1725000639512,-500.0,0.00027874,2]
[336660340,1725000639524,-600.0,0.00027985,2]
[336660341,1725000639536,-500.0,0.00028017,2]
[336660342,1725000639547,-500.0,0.00028197,2]
[336660343,1725000639557,-407.81710597,0.00028224,2]
[336660344,1725000639567,-3120.73250441,0.00028224,2]
[336660345,1725000639579,-600.0,0.00028244,2]
[336660346,1725000639589,-214.828559,0.00028274,2]
[336660347,1725000639602,-202.654079,0.00028274,2]
[336660348,1725000639612,-158.629509,0.00028274,2]
[336660350,1725000639623,-254.1404,0.00028274,2]
[336660351,1725000639633,-221.945124,0.00028274,2]
[336660352,1725000639643,-214.828558,0.00028274,2]
[336660353,1725000639654,-64.77321594,0.00028274,2]
[336660362,1725000640320,-5583.70176671,0.00020974,2]
[336660363,1725000640332,-210.04841006,0.00028274,2]
[336660364,1725000640343,-379.383666,0.00028274,2]
[336660365,1725000640352,-327.69813,0.00028274,2]
[336660366,1725000640363,-380.574633,0.00028274,2]
[336660367,1725000640380,-297.106112,0.00028274,2]
[336660368,1725000640395,-158.629509,0.00028274,2]
[336660369,1725000640410,-205.693885,0.00028274,2]
[336660370,1725000640421,-193.653529,0.00028274,2]
[336660371,1725000640432,-198.908763,0.00028274,2]
[336660372,1725000640443,-202.65408,0.00028274,2]
[336660373,1725000640454,-224.96244,0.00028274,2]
[336660374,1725000640465,-180.826148,0.00028274,2]
[336660375,1725000640476,-160.857952,0.00028274,2]
[336660376,1725000640488,-199.467563,0.00028274,2]
[336660377,1725000640498,-281.880617,0.00028274,2]
[336660378,1725000640651,-261.730776,0.00028274,2]
[336660379,1725000640666,-500.0,0.00028332,2]
[336660380,1725000640676,-500.0,0.00028424,2]
[336660381,1725000640687,-500.0,0.00028439,2]
[336660382,1725000640697,-500.0,0.00028596,2]
[336660383,1725000640707,-160.259066,0.00028627,7]
[336660384,1725000640717,-160.259066,0.00028627,7]
[336660385,1725000640726,-158.629509,0.00028627,2]
[336660386,1725000640736,-254.1404,0.00028627,2]
[336660387,1725000640746,-221.945124,0.00028627,2]
[336660388,1725000640756,-214.828558,0.00028627,2]
[336660389,1725000640766,-274.821626,0.00028627,2]
[336660390,1725000640775,-379.383666,0.00028627,2]
[336660391,1725000640785,-327.69813,0.00028627,2]
[336660392,1725000640796,-380.574633,0.00028627,2]
[336660393,1725000640805,-297.106112,0.00028627,2]
[336660394,1725000640814,-158.629509,0.00028627,2]
[336660395,1725000640824,-198.908763,0.00028627,2]
[336660396,1725000640834,-224.96244,0.00028627,2]
[336660397,1725000640844,-160.857952,0.00028627,2]
[336660398,1725000640853,-281.880617,0.00028627,2]
[336660400,1725000640863,-150.112233,0.000287,5]
[336660401,1725000640873,-446.5,0.000287,7]
[336660403,1725000640883,-158.629509,0.0002898,2]
[336660405,1725000640893,-254.1404,0.0002898,2]
[336660407,1725000640902,-221.945124,0.0002898,2]
[336660408,1725000640913,-214.828558,0.0002898,2]
[336660409,1725000640922,-274.821626,0.0002898,2]
[336660410,1725000640931,-379.383666,0.0002898,2]
[336660411,1725000640941,-327.69813,0.0002898,2]
[336660412,1725000640951,-380.574633,0.0002898,2]
[336660413,1725000640961,-297.106112,0.0002898,2]
[336660414,1725000640970,-158.629509,0.0002898,2]
[336660415,1725000640980,-193.653529,0.0002898,2]
[336660416,1725000640989,-198.908763,0.0002898,2]
[336660417,1725000640999,-224.96244,0.0002898,2]
[336660418,1725000641010,-160.857952,0.0002898,2]
[336660419,1725000641019,-199.467563,0.0002898,2]
[336660420,1725000641029,-281.880617,0.0002898,2]
[336660421,1725000641039,-852.68118146,0.00029,2]
[336660422,1725000641049,-500.0,0.00029036,2]
[336660423,1725000641059,-500.0,0.00029047,2]
[336660424,1725000641068,-151.0,0.00029124,7]
[336660425,1725000641078,-151.0,0.00029124,7]
[336660426,1725000641088,-1200.0,0.00029155,2]
[336660427,1725000641100,-2335.71116107,0.00029167,2]
[336660428,1725000641110,-137.84276644,0.00029212,2]
[336660433,1725000643380,-362.15723356,0.00029212,2]
[336660434,1725000643390,-500.0,0.00029237,2]
[336660435,1725000643401,-500.0,0.00029251,2]
[336660436,1725000643412,-1200.0,0.00029315,2]
[336660437,1725000643421,-1200.0,0.0002933,2]
[336660439,1725000643432,-158.629509,0.00029334,2]
[336660440,1725000643441,-254.1404,0.00029334,2]
[336660441,1725000643454,-221.945124,0.00029334,2]
[336660442,1725000643464,-214.828558,0.00029334,2]
[336660443,1725000643474,-274.821626,0.00029334,2]
[336660444,1725000643483,-379.383666,0.00029334,2]
[336660445,1725000643493,-327.69813,0.00029334,2]
[336660446,1725000643503,-380.574633,0.00029334,2]
[336660447,1725000643514,-297.106112,0.00029334,2]
[336660448,1725000643523,-158.629509,0.00029334,2]
[336660449,1725000643534,-198.908763,0.00029334,2]
[336660450,1725000643545,-224.96244,0.00029334,2]
[336660451,1725000643557,-160.857952,0.00029334,2]
[336660452,1725000643566,-281.880617,0.00029334,2]
[336660453,1725000643576,-151.0,0.00029471,7]
[336660454,1725000643587,-500.0,0.00029477,2]
[336660455,1725000643598,-500.0,0.00029537,2]
[336660456,1725000643610,-600.0,0.00029597,2]
[336660457,1725000643622,-158.629509,0.00029687,2]
[336660458,1725000643634,-254.1404,0.00029687,2]
[336660459,1725000643644,-221.945124,0.00029687,2]
[336660460,1725000643654,-214.828558,0.00029687,2]
[336660461,1725000643664,-274.821626,0.00029687,2]
[336660462,1725000643674,-379.383666,0.00029687,2]
[336660463,1725000643683,-327.69813,0.00029687,2]
[336660464,1725000643693,-380.574633,0.00029687,2]
[336660465,1725000643703,-297.106112,0.00029687,2]
[336660466,1725000643713,-158.629509,0.00029687,2]
[336660467,1725000643722,-205.693885,0.00029687,2]
[336660468,1725000643732,-193.653529,0.00029687,2]
[336660469,1725000643742,-198.908763,0.00029687,2]
[336660470,1725000643752,-224.96244,0.00029687,2]
[336660472,1725000643762,-180.826148,0.00029687,2]
[336660473,1725000643774,-160.857952,0.00029687,2]
[336660474,1725000643783,-199.467563,0.00029687,2]
[336660475,1725000643793,-281.880617,0.00029687,2]
[336660476,1725000643802,-500.0,0.00029748,2]
[336660477,1725000643815,-500.0,0.00029756,2]
[336660478,1725000643827,-500.0,0.00029757,2]
[336660479,1725000643839,-150.112233,0.000298,8]
[336660480,1725000643850,-500.0,0.00029843,2]
[336660481,1725000643861,-151.0,0.00029844,7]
[336660482,1725000643871,-600.0,0.00029894,2]
[336660483,1725000643882,-4319.65216897,0.000299,2]
[336660501,1725000646280,-25680.34783103,0.000299,2]
[336660502,1725000646290,-306.0,0.00029918,2]
[336660503,1725000646301,-500.0,0.00029939,2]
[336660504,1725000646312,-500.0,0.00029961,2]
[336660505,1725000646323,-500.0,0.00029997,2]
[336660506,1725000646333,-1076.11250587,0.0003,7]
[336660507,1725000646342,-869.30273367,0.0003,15]
[336660508,1725000646352,-601.65217797,0.0003,2]
[336660509,1725000646361,-1008.40744986,0.0003,7]
[336660510,1725000646371,-151.0,0.0003,120]
[336660511,1725000646380,-198.0,0.0003,2]
[336660512,1725000646389,-151.0,0.0003,120]
[336660513,1725000646399,-234.0,0.0003,2]
[336660514,1725000646413,-157.0,0.0003,2]
[336660515,1725000646423,-500.0,0.00030019,7]
[336660516,1725000646433,-500.0,0.00030033,2]
[336660517,1725000646442,-500.0,0.0003005,2]
[336660518,1725000646452,-500.0,0.00030079,7]
[336660519,1725000646461,-1200.0,0.00030081,7]
[336660520,1725000646471,-203.0,0.00030137,2]
[336660521,1725000646482,-500.0,0.00030143,2]
[336660522,1725000646496,-600.0,0.00030192,7]
[336660523,1725000646506,-1643.721898,0.000302,6]
[336660524,1725000646517,-500.0,0.00030241,7]
[336660525,1725000646528,-500.0,0.00030258,2]
[336660526,1725000646538,-500.0,0.00030356,2]
[336660527,1725000646548,-500.0,0.00030366,2]
[336660528,1725000646557,-198.0,0.00030411,2]
[336660529,1725000646566,-500.0,0.00030417,2]
[336660530,1725000646577,-500.0,0.00030442,2]
[336660531,1725000646588,-600.0,0.00030456,7]
[336660532,1725000646600,-500.0,0.00030472,2]
[336660533,1725000646611,-500.0,0.00030525,2]
[336660534,1725000646621,-1200.0,0.00030574,7]
[336660535,1725000646632,-500.0,0.00030624,7]
[336660536,1725000646646,-186.0055248,0.0003065,2]
[336660537,1725000646656,-600.0,0.00030661,7]
[336660538,1725000646667,-500.0,0.00030663,2]